bitfinex-derivatives/quotes_SOLF0:USTF0_20260211
["timestamp","ask_amount","ask_price","bid_price","bid_amount"]
[1770820928514,6.0662394,80.949,80.866,30.19622656]
[1770820929124,6.0662394,80.949,80.879,30.19622656]
[1770820929322,5.6011537,80.971,80.879,30.19622656]
[1770820929526,5.54960692,80.959,80.879,30.19622656]
[1770820929725,26.73235029,80.96,80.84,37.73235029]
[1770820929726,5.54960692,80.941,80.841,30.19622656]
[1770820930025,5.54960692,80.939,80.841,30.19622656]
[1770820930328,11.1284,80.91,80.841,30.19622656]
[1770820930923,16.61767157,80.91,80.841,30.19622656]
[1770820932623,6.20599847,80.909,80.841,30.19622656]
[1770820932824,6.20599847,80.889,80.801,30.19622656]
[1770820933330,6.21446734,80.919,80.811,30.19622656]
[1770820933520,6.16559054,80.94,80.831,30.19622656]
[1770820933929,6.16559054,80.94,80.845,30.19622656]
[1770820934930,6.45649505,80.99,80.895,30.19622656]
[1770820935129,6.45649505,80.909,80.805,30.19622656]
[1770820935332,173.0771,80.926,80.731,46.58939742]
[1770820935333,26.77891681,80.87,80.731,46.58939742]
[1770820935529,11.1389,80.834,80.731,46.58939742]
[1770820935831,26.77891681,80.83,80.731,46.58939742]
[1770820936028,11.1424,80.809,80.731,46.58939742]
[1770820936230,26.77891681,80.81,80.731,46.58939742]
[1770820936533,26.77891681,80.79,80.681,47.81972735]
[1770820936728,26.77891681,80.77,80.681,47.81972735]
[1770820936933,164.66,80.802,80.681,47.81972735]
[1770820937127,11.1464,80.78,80.681,47.81972735]
[1770820937331,9.60686545,80.817,80.681,47.81972735]
[1770820937531,26.77891681,80.81,80.681,47.81972735]
[1770820937732,26.77891681,80.81,80.695,47.81769703]
[1770820938130,11.1457,80.785,80.695,47.81769703]
[1770820938436,26.77891681,80.83,80.701,45.19968865]
[1770820938829,26.77891681,80.83,80.704,45.19968865]
[1770820939029,173.3004,80.821,80.704,45.19968865]
[1770820939229,11.1415,80.816,80.704,45.19968865]
[1770820939534,26.77891681,80.83,80.704,45.19968865]
[1770820940130,173.2604,80.84,80.704,45.19968865]
[1770820940331,26.77891681,80.83,80.704,45.19968865]
[1770820940526,173.2667,80.837,80.704,45.19968865]
[1770820940527,11.1455,80.787,80.704,45.19968865]
[1770820941033,11.1893907,80.862,80.704,45.19968865]
[1770820941034,173.3356,80.805,80.704,45.19968865]
[1770820941233,26.77891681,80.79,80.704,45.19968865]
[1770820941434,26.77891681,80.77,80.679,45.11585448]
[1770820941633,26.77891681,80.77,80.6,26.77891681]
[1770820941635,200.23321681,80.75,80.639,2.15547276]
[1770820941840,173.4981,80.729,80.59,26.77891681]
[1770820942036,11.1599,80.682,80.574,11.1747]
[1770820942233,26.77891681,80.73,80.6,26.77891681]
[1770820942741,11.1526,80.735,80.62,26.77891681]
[1770820942940,26.77891681,80.73,80.62,26.77891681]
[1770820943237,173.4587,80.748,80.519,421.4292]
[1770820943238,26.77891681,80.69,80.519,421.4292]
[1770820943437,26.77891681,80.71,80.59,26.77891681]
[1770820943639,26.77891681,80.73,80.611,33.98057532]
[1770820943838,26.77891681,80.75,80.631,33.98057532]
[1770820944235,11.1529,80.733,80.632,34.1897796]
[1770820944536,26.77891681,80.75,80.632,34.1897796]
[1770820944738,11.1513,80.745,80.651,34.1897796]
[1770820945142,11.1513,80.745,80.653,34.18973715]
[1770820945436,26.77891681,80.77,80.653,34.18973715]
[1770820945437,11.1493,80.759,80.653,34.18973715]
[1770820945837,11.1493,80.759,80.655,34.18973715]
[1770820946537,11.1464,80.78,80.691,34.37423843]
[1770820946937,26.77891681,80.81,80.691,34.37423843]
[1770820947138,11.1467,80.778,80.693,34.37512416]
[1770820947337,26.77891681,80.81,80.693,34.37512416]
[1770820947642,11.1438,80.799,80.693,34.37512416]
[1770820948338,26.77891681,80.79,80.693,34.37512416]
[1770820948737,164.04,80.825,80.693,34.37512416]
[1770820948738,26.77891681,80.81,80.693,34.37512416]
[1770820948938,26.77891681,80.83,80.701,34.40772412]
[1770820949545,26.77891681,80.81,80.701,34.40772412]
[1770820949740,26.77891681,80.81,80.63,173.7095]
[1770820949741,26.77891681,80.79,80.661,34.40772787]
[1770820949932,26.77891681,80.79,80.66,26.77891681]
[1770820949933,26.77891681,80.81,80.681,34.40772787]
[1770820950332,26.77891681,80.81,80.683,34.5978219]
[1770820950944,11.1446,80.793,80.683,34.5978219]
[1770820951244,26.77891681,80.81,80.683,34.5978219]
[1770820951438,11.1424,80.809,80.685,34.59779331]
[1770820951841,26.77891681,80.81,80.685,34.59779331]
[1770820952036,26.77891681,80.81,80.623,173.725]
[1770820952037,26.77891681,80.79,80.689,33.74501825]
[1770820952639,26.77891681,80.77,80.689,33.74501825]
[1770820953544,26.77891681,80.77,80.654,33.74497839]
[1770820953744,11.1479,80.769,80.663,11.1625]
[1770820954046,26.77891681,80.77,80.664,33.74497839]
[1770820954434,11.1495,80.758,80.664,33.74497839]
[1770820954638,26.77891681,80.77,80.664,33.74497839]
[1770820955033,11.1482,80.767,80.664,33.74497839]
[1770820955241,26.77891681,80.77,80.664,33.74497839]
[1770820955445,11.1481,80.767,80.667,33.70358278]
[1770820956147,26.77891681,80.75,80.667,33.70358278]
[1770820956342,26.77891681,80.77,80.667,33.70358278]
[1770820956544,26.77891681,80.75,80.668,33.6087972]
[1770820957040,26.77891681,80.73,80.64,33.6087972]
[1770820957245,26.77891681,80.75,80.64,33.6087972]
[1770820957547,11.1514,80.744,80.652,33.60875827]
[1770820958046,26.77891681,80.76,80.652,33.60875827]
[1770820959044,10.53370919,80.72,80.628,33.64083714]
[1770820959442,10.53370919,80.74,80.641,33.64082087]
[1770820959742,11.1524,80.737,80.641,33.64082087]
[1770820959935,10.53370919,80.74,80.641,33.64082087]
[1770820960339,11.152,80.739,80.641,33.64082087]
[1770820960735,10.53370919,80.74,80.641,33.64082087]
[1770820960935,11.1522,80.738,80.651,34.19380466]
[1770820961548,11.1536,80.728,80.651,34.19380466]
[1770820961941,10.53016435,80.72,80.651,34.19380466]
[1770820962247,11.1553,80.716,80.651,34.19380466]
[1770820962451,10.53016435,80.7,80.626,34.12388899]
[1770820962753,10.53016435,80.7,80.603,11.1708]
[1770820962754,10.53016435,80.7,80.455,176.0]
[1770820962755,10.53016435,80.76,80.651,34.12388899]
[1770820962941,10.53016435,80.76,80.671,34.12388899]
[1770820963136,11.1504,80.751,80.671,34.12388899]
[1770820963341,10.53016435,80.76,80.671,34.12388899]
[1770820963541,473.626863,80.777,80.671,34.12388899]
[1770820963542,10.53016435,80.74,80.671,34.12388899]
[1770820963747,10.53016435,80.77,80.681,34.12384432]
[1770820964143,11.1495,80.758,80.681,34.12384432]
[1770820964345,10.53016435,80.76,80.681,34.12384432]
[1770820964745,11.1525,80.736,80.681,34.12384432]
[1770820965144,473.626863,80.777,80.681,34.12384432]
[1770820965145,10.53016435,80.74,80.681,34.12384432]
[1770820965348,11.1534,80.73,80.681,34.12384432]
[1770820965540,10.53016435,80.74,80.659,34.20147981]
[1770820966149,10.53016435,80.73,80.659,34.20147981]
[1770820966347,10.53016435,80.73,80.631,34.19337304]
[1770820966549,11.156,80.71,80.631,34.19337304]
[1770820966942,10.53016435,80.76,80.671,34.19335113]
[1770820967142,11.1542,80.724,80.671,34.19335113]
[1770820967344,11.1542,80.724,80.651,34.19335113]
[1770820967544,173.296,80.823,80.681,34.19335113]
[1770820967856,10.53016435,80.79,80.701,34.19335113]
[1770820968247,11.1478,80.77,80.701,34.19335113]
[1770820968443,10.53016435,80.79,80.701,34.19335113]
[1770820968651,10.53016435,80.77,80.701,34.19335113]
[1770820968850,10.53016435,80.79,80.701,34.19335113]
[1770820969358,11.149,80.761,80.701,34.19335113]
[1770820969552,10.53016435,80.79,80.701,34.19335113]
[1770820970053,10.53016435,80.77,80.701,34.19335113]
[1770820970246,10.53016435,80.79,80.701,34.19335113]
[1770820970555,11.1493,80.759,80.701,34.19335113]
[1770820972063,11.1504,80.751,80.701,34.19335113]
[1770820972356,164.02,80.793,80.701,34.19335113]
[1770820972554,11.1499,80.755,80.701,34.19335113]
[1770820972750,164.02,80.793,80.701,34.19335113]
[1770820973349,11.1494,80.758,80.701,34.19335113]
[1770820973748,62.5535001,80.82,80.703,33.87471345]
[1770820973950,173.3168,80.814,80.703,33.87471345]
[1770820974154,173.3216,80.812,80.703,33.87471345]
[1770820974356,11.1478,80.77,80.703,33.87471345]
[1770820974755,22.2863,80.804,80.703,33.87471345]
[1770820974952,173.3269,80.809,80.703,33.87471345]
[1770820974953,40.2718001,80.8,80.703,33.87471345]
[1770820975551,186.7275,80.799,80.703,33.87471345]
[1770820976265,11.1499,80.755,80.703,33.87471345]
[1770820976753,10.12082464,80.797,80.703,33.87471345]
[1770820976952,11.148,80.768,80.703,33.87471345]
[1770820977352,164.84,80.798,80.703,33.87471345]
[1770820977548,40.2718001,80.82,80.707,33.85115492]
[1770820977750,10.14045323,80.835,80.721,33.85115492]
[1770820978049,40.2718001,80.84,80.721,33.85115492]
[1770820978050,10.14045323,80.839,80.721,33.85115492]
[1770820978554,11.1416,80.815,80.723,33.8469589]
[1770820978754,10.14045323,80.839,80.731,33.8469589]
[1770820978959,11.1405,80.823,80.745,33.8469589]
[1770820979251,164.84,80.842,80.745,33.8469589]
[1770820979452,40.2718001,80.87,80.762,33.84693909]
[1770820979655,175.14532884,80.869,80.762,33.84693909]
[1770820979957,10.18532884,80.868,80.776,33.84693909]
[1770820980262,164.96,80.869,80.776,33.84693909]
[1770820980263,10.18532884,80.867,80.776,33.84693909]
[1770820980556,11.1366,80.851,80.776,33.84693909]
[1770820980861,10.18532884,80.85,80.776,33.84693909]
[1770820981059,10.18532884,80.849,80.788,33.9220517]
[1770820981260,11.05486422,80.881,80.788,33.9220517]
[1770820981558,10.20573246,80.88,80.788,33.9220517]
[1770820981750,10.20573246,80.879,80.788,33.9220517]
[1770820981956,10.20573246,80.878,80.788,33.9220517]
[1770820982147,11.05486422,80.9,80.78,40.2718001]
[1770820982148,165.1,80.901,80.798,34.19476398]
[1770820982348,40.2718001,80.89,80.798,34.19476398]
[1770820982553,11.1342,80.868,80.798,34.19476398]
[1770820982749,10.15993709,80.888,80.798,34.19476398]
[1770820982957,10.15993709,80.887,80.798,34.19476398]
[1770820983164,10.15993709,80.886,80.798,34.19476398]
[1770820983463,165.1,80.901,80.798,34.19476398]
[1770820983661,11.1318,80.886,80.814,34.19472376]
[1770820983859,165.1,80.901,80.792,34.19472376]
[1770820983860,10.14794861,80.885,80.792,34.19472376]
[1770820984050,40.2718001,80.87,80.792,34.19472376]
[1770820984255,11.1352,80.861,80.792,34.19472376]
[1770820984459,10.13449757,80.869,80.751,34.19593701]
[1770820984652,10.13449757,80.869,80.74,194.34]
[1770820984653,10.13449757,80.869,80.764,34.19593701]
[1770820984853,10.13449757,80.868,80.764,34.19593701]
[1770820985060,40.2718001,80.85,80.764,34.19593701]
[1770820985258,11.1398,80.828,80.765,11.1484]
[1770820985454,40.2718001,80.87,80.766,34.19589875]
[1770820985857,40.2718001,80.85,80.766,34.19589875]
[1770820986564,11.05486422,80.896,80.768,34.39503955]
[1770820986766,175.46727736,80.895,80.768,34.39503955]
[1770820986960,11.1353,80.861,80.791,34.39503955]
[1770820987260,173.0835,80.923,80.791,34.39503955]
[1770820987261,165.34,80.883,80.791,34.39503955]
[1770820987462,11.1358,80.857,80.801,11.1434]
[1770820987664,10.12708732,80.882,80.791,34.39503955]
[1770820988267,11.1355,80.859,80.791,34.39503955]
[1770820988478,10.12708732,80.882,80.791,34.39503955]
[1770820989266,165.34,80.883,80.791,34.39503955]
[1770820989766,11.1367,80.85,80.791,34.39503955]
[1770820990573,11.1367,80.85,80.714,37.02]
[1770820990574,40.2718001,80.85,80.766,35.35226791]
[1770820990761,40.2718001,80.89,80.771,35.35226791]
[1770820990961,10.4919904,80.88,80.791,35.35226791]
[1770820991262,10.4919904,80.9,80.811,35.35221399]
[1770820991771,11.1327,80.879,80.811,35.35221399]
[1770820991969,10.4919904,80.9,80.811,35.35221399]
[1770820992161,10.4919904,80.9,80.82,10.4919904]
[1770820992362,75.07489949,81.179,80.76,32.7899904]
[1770820992363,165.58,80.913,80.797,35.00288936]
[1770820992566,10.4919904,80.91,80.811,35.00288936]
[1770820992867,10.4919904,80.91,80.831,35.00288936]
[1770820993376,11.1337,80.872,80.831,35.00288936]
[1770820993568,10.4919904,80.91,80.831,35.00288936]
[1770820994164,10.4919904,80.93,80.831,35.00288936]
[1770820994871,11.1309,80.893,80.834,34.9243146]
[1770820995173,10.4919904,80.93,80.834,34.9243146]
[1770820995969,10.4919904,80.89,80.834,34.9243146]
[1770820996166,10.4919904,80.89,80.811,34.94000489]
[1770820996368,11.132,80.884,80.811,34.94000489]
[1770820996569,10.4919904,80.93,80.85,10.4919904]
[1770820996867,10.4919904,80.94,80.851,34.94000489]
[1770820997074,11.1284,80.911,80.851,34.94000489]
[1770820997266,10.4919904,80.94,80.851,34.94000489]
[1770820997475,11.1293,80.905,80.851,34.94000489]
[1770820998277,11.1281,80.913,80.851,34.94000489]
[1770820998967,11.1293,80.904,80.851,34.94000489]
[1770820999270,10.4919904,80.94,80.851,34.94000489]
[1770820999668,10.4919904,80.94,80.86,11.1353]
[1770820999973,10.4919904,80.94,80.861,34.79504835]
[1770821000273,11.1248,80.937,80.872,11.1336]
[1770821000476,11.1248,80.937,80.871,35.07768566]
[1770821000671,10.4919904,80.98,80.891,35.07768566]
[1770821000865,10.4919904,81.0,80.911,35.07768566]
[1770821001064,167.26,81.016,80.911,35.07768566]
[1770821001373,11.1175,80.99,80.913,35.07177324]
[1770821001575,10.4919904,81.01,80.913,35.07177324]
[1770821001871,11.1157,81.003,80.922,11.1267]
[1770821002175,10.4919904,81.01,80.931,35.06194944]
[1770821002573,10.4919904,81.05,80.951,35.06194944]
[1770821002962,167.26,81.064,80.951,35.06194944]
[1770821002963,11.113,81.023,80.951,35.06194944]
[1770821003168,10.4919904,81.05,80.951,35.06194944]
[1770821003567,11.1087,81.054,80.971,35.06192193]
[1770821003770,10.4919904,81.02,80.931,35.06192193]
[1770821004175,10.4919904,81.04,80.95,10.4919904]
[1770821004371,10.4919904,81.04,80.951,35.13497133]
[1770821004676,10.4919904,81.06,80.971,35.13497133]
[1770821004864,10.4919904,81.02,80.9,35.13497133]
[1770821005065,10.4919904,81.02,80.921,35.13497133]
[1770821005066,11.1141,81.015,80.921,35.13497133]
[1770821005374,10.4919904,81.02,80.921,35.13497133]
[1770821005575,11.1171,80.993,80.921,35.13497133]
[1770821005776,172.8349,81.039,80.921,35.13497133]
[1770821005777,10.4919904,81.01,80.921,35.13497133]
[1770821006164,10.4919904,80.99,80.921,35.13497133]
[1770821006364,10.4919904,81.01,80.921,35.13497133]
[1770821006570,11.115,81.008,80.923,35.03492209]
[1770821006775,10.4919904,81.03,80.941,35.03492209]
[1770821006976,10.4919904,81.05,80.941,35.03492209]
[1770821007176,10.4919904,81.07,80.975,35.02557441]
[1770821007375,10.4919904,81.05,80.975,35.02557441]
[1770821008572,166.88,81.083,80.975,35.02557441]
[1770821008774,10.4919904,81.05,80.975,35.02557441]
[1770821009082,11.1078,81.06,80.981,35.2961195]
[1770821009467,10.4919904,81.05,80.981,35.2961195]
[1770821009879,11.1082,81.058,80.981,35.2961195]
[1770821010071,10.4919904,81.06,80.981,35.2961195]
[1770821010272,22.2069,81.093,80.981,35.2961195]
[1770821010273,10.4919904,81.04,80.981,35.2961195]
[1770821010479,10.4919904,81.06,80.987,35.16923601]
[1770821010870,10.4919904,81.08,80.999,35.16923601]
[1770821011078,10.4919904,81.08,81.001,35.16578234]
[1770821011381,10.4919904,81.07,81.001,35.16578234]
[1770821011581,10.4919904,81.07,80.978,35.16578234]
[1770821011785,10.4919904,81.05,80.978,35.16578234]
[1770821012676,11.1122,81.029,80.978,35.16578234]
[1770821012880,10.4919904,81.05,80.978,35.16578234]
[1770821013379,11.1107,81.04,80.978,35.16578234]
[1770821013582,10.4919904,81.03,80.958,35.16201641]
[1770821014174,10.4919904,81.03,80.94,10.4919904]
[1770821014175,10.4919904,81.05,80.962,35.0641136]
[1770821014571,10.4919904,81.07,80.981,35.0641136]
[1770821014780,11.1077,81.062,81.004,35.0641136]
[1770821014979,10.4919904,81.09,81.004,35.0641136]
[1770821015381,11.1055,81.077,81.016,11.1139]
[1770821015579,10.4919904,81.09,81.004,35.0641136]
[1770821016180,172.6085,81.145,81.004,35.0641136]
[1770821016378,10.4919904,81.09,81.004,35.0641136]
[1770821016578,11.1054,81.078,81.006,35.05565523]
[1770821016774,10.4919904,81.07,80.981,35.05565523]
[1770821016977,10.4919904,81.05,80.981,35.05565523]
[1770821017178,11.112,81.03,80.981,35.05565523]
[1770821017381,11.112,81.03,80.961,35.05248185]
[1770821017580,10.4919904,81.03,80.961,35.05248185]
[1770821018185,11.1151,81.008,80.935,34.89252122]
[1770821018485,10.4919904,81.02,80.935,34.89252122]
[1770821018874,11.1161,81.0,80.935,34.89252122]
[1770821019076,10.4919904,81.01,80.935,34.89252122]
[1770821019280,10.4919904,81.03,80.951,34.88956882]
[1770821020188,10.4919904,81.01,80.951,34.88956882]
[1770821021284,22.218,81.052,80.951,34.88956882]
[1770821021489,10.4919904,81.02,80.951,34.88956882]
[1770821022188,166.6,81.055,80.951,34.88956882]
[1770821022189,11.1165,80.997,80.951,34.88956882]
[1770821022384,10.4919904,81.02,80.951,34.88956882]
[1770821022890,10.45835984,81.01,80.951,34.88956882]
[1770821023188,10.45835984,81.01,80.93,34.91708004]
[1770821023889,10.45835984,81.01,80.932,34.91708004]
[1770821024492,172.7552,81.077,80.92,10.45835984]
[1770821024493,172.7068,81.099,80.981,34.90015697]
[1770821024789,10.45835984,81.08,81.001,34.90015697]
[1770821024988,10.45835984,81.1,81.005,34.90015697]
[1770821025294,10.45835984,81.06,80.961,34.89736131]
[1770821026285,10.45835984,81.04,80.961,34.89736131]
[1770821026482,10.45835984,81.06,80.961,34.89736131]
[1770821027186,10.45835984,81.06,80.963,34.23940587]
[1770821027388,10.45835984,81.08,81.001,34.23940587]
[1770821027783,11.111,81.037,81.001,34.23940587]
[1770821028182,10.45835984,81.08,81.001,34.23940587]
[1770821028386,10.45835984,81.1,81.006,34.26620706]
[1770821028583,10.45835984,81.1,81.021,34.26620706]
[1770821029483,12.29973493,81.079,80.99,10.45835984]
[1770821029687,10.45835984,81.06,80.97,10.45835984]
[1770821030393,12.39584234,81.059,80.97,10.45835984]
[1770821030595,12.39584234,81.059,80.88,10.45835984]
[1770821030596,11.1123,81.028,80.95,10.45835984]
[1770821030792,12.37613427,81.039,80.93,10.45835984]
[1770821031091,11.1165,80.997,80.93,202.87835984]
[1770821031291,11.1165,80.997,80.905,11.1291]
[1770821031292,10.45835984,81.0,80.91,10.45835984]
[1770821031490,12.37786208,80.999,80.911,29.43108689]
[1770821032294,11.1192,80.978,80.911,29.43108689]
[1770821032682,12.12337216,80.979,80.89,39.88944673]
[1770821032898,12.12337216,80.959,80.891,29.43108689]
[1770821033088,10.45835984,80.96,80.891,29.43108689]
[1770821033483,21.57995984,80.96,80.891,29.43108689]
[1770821033689,22.56518807,80.96,80.891,29.43108689]
[1770821034187,11.1222,80.956,80.891,29.43108689]
[1770821034396,10.45835984,80.99,80.891,29.43108689]
[1770821034585,10.45835984,81.01,80.931,29.43108689]
[1770821034787,10.45835984,80.99,80.931,29.43108689]
[1770821035094,10.45835984,80.99,80.91,29.43108689]
[1770821035284,11.1179,80.987,80.91,29.43108689]
[1770821035487,10.45835984,80.99,80.91,29.43108689]
[1770821035689,10.45835984,80.99,80.911,29.43108689]
[1770821036489,10.45835984,80.99,80.892,192.62]
[1770821036490,12.11139166,81.009,80.921,29.43108689]
[1770821036889,22.68004405,81.03,80.941,29.43108689]
[1770821037399,12.20591938,81.069,80.984,29.43108689]
[1770821038295,10.45835984,81.06,80.984,29.43108689]
[1770821038493,172.6843,81.11,80.942,192.6]
[1770821038494,10.45835984,81.11,81.021,29.43108689]
[1770821038799,12.274005,81.089,81.024,29.43108689]
[1770821039296,12.27630928,81.069,80.991,29.43108689]
[1770821039804,10.45835984,81.05,80.991,29.43108689]
[1770821039993,10.45835984,81.05,80.942,29.43108689]
[1770821039994,12.79854259,81.029,80.942,29.43108689]
[1770821040195,10.45835984,81.01,80.942,29.43108689]
[1770821040696,12.79854259,81.029,80.942,29.43108689]
[1770821040889,12.79854259,81.029,80.946,29.43108689]
[1770821041291,10.45835984,81.06,80.94,10.45835984]
[1770821041292,12.7834323,81.073,80.981,29.43108689]
[1770821041491,12.7661915,81.069,81.001,29.43108689]
[1770821041804,10.45835984,81.12,81.001,29.43108689]
[1770821041805,23.22455134,81.08,81.001,29.43108689]
[1770821042002,23.22455134,81.08,81.005,29.43108689]
[1770821042205,9.38293637,81.121,80.961,192.38]
[1770821042206,10.45835984,81.1,81.021,29.43108689]
[1770821042394,23.5851217,81.1,81.021,29.43108689]
[1770821042798,13.12676186,81.1,81.021,29.43108689]
[1770821043003,10.45835984,81.09,81.021,29.43108689]
[1770821043300,10.45835984,81.13,81.051,29.43108689]
[1770821044094,12.91977926,81.124,81.051,29.43108689]
[1770821044401,12.91977926,81.124,81.031,29.43108689]
[1770821044995,10.45835984,81.11,81.031,29.43108689]
[1770821045197,12.90498607,81.109,81.031,29.43108689]
[1770821045504,12.90498607,81.109,81.011,29.43108689]
[1770821045694,12.88840292,81.089,81.011,29.43108689]
[1770821045900,12.88840292,81.089,81.013,29.43108689]
[1770821046298,12.88840292,81.089,81.01,10.45835984]
[1770821046299,10.45835984,81.11,81.036,11.111]
[1770821046499,10.45835984,81.11,81.037,29.43108689]
[1770821046699,23.57942542,81.11,81.037,29.43108689]
[1770821046898,13.12106558,81.109,81.037,29.43108689]
[1770821047100,10.45835984,81.09,81.015,29.43108689]
[1770821047303,10.45835984,81.07,80.992,29.43108689]
[1770821047509,10.45835984,81.07,80.994,29.43108689]
[1770821047807,13.12288172,81.089,81.001,29.43108689]
[1770821048008,10.45835984,81.07,81.001,29.43108689]
[1770821048302,13.12288172,81.089,81.002,29.43108689]
[1770821048502,10.45835984,81.09,81.002,29.43108689]
[1770821048696,14.93320625,81.089,81.003,29.43108689]
[1770821048899,10.45835984,81.09,81.003,29.43108689]
[1770821049098,14.93449519,81.109,81.021,29.43108689]
[1770821049295,14.93449519,81.108,81.025,29.43108689]
[1770821049601,10.45835984,81.11,81.031,29.43108689]
[1770821050101,25.37704751,81.13,81.051,29.43108689]
[1770821050301,15.82859653,81.149,81.051,29.43108689]
[1770821050509,11.0967,81.142,81.051,29.43108689]
[1770821050905,15.81251596,81.129,81.051,29.43108689]
[1770821051505,37.3534856,81.14,81.051,29.43108689]
[1770821051703,9.40849409,81.155,81.071,29.43108689]
[1770821051911,15.79812576,81.163,81.089,29.43108689]
[1770821052218,15.68755594,81.185,81.089,29.43108689]
[1770821052400,10.45835984,81.19,81.115,29.43108689]
[1770821052711,15.67227511,81.189,81.115,29.43108689]
[1770821053003,15.67227511,81.189,81.137,11.0972]
[1770821053414,11.0887,81.2,81.126,11.0987]
[1770821053615,15.65830252,81.189,81.115,29.43108689]
[1770821054615,10.45835984,81.2,81.115,29.43108689]
[1770821054915,15.82764631,81.199,81.115,29.43108689]
[1770821055213,11.0905,81.187,81.125,11.0989]
[1770821055823,11.0892,81.197,81.125,11.0989]
[1770821056013,15.82764631,81.199,81.115,40.53128689]
[1770821056210,15.82764631,81.199,81.115,29.43108689]
[1770821056410,11.0929,81.17,81.115,29.43108689]
[1770821056614,11.0929,81.17,81.094,29.43108689]
[1770821057009,11.0942,81.16,81.102,11.102]
[1770821057211,16.16883806,81.195,81.103,29.43108689]
[1770821057422,16.16883806,81.227,81.105,172.6919]
[1770821057618,16.15439417,81.226,81.154,11.0949]
[1770821058210,17.71938611,81.216,81.12,29.43108689]
[1770821058418,17.71938611,81.199,81.12,29.43108689]
[1770821058611,17.71938611,81.199,81.071,29.43108689]
[1770821058811,17.70517741,81.175,81.081,29.43108689]
[1770821059422,17.70564672,81.218,81.111,29.43108689]
[1770821060512,17.70564672,81.218,81.135,30.10910836]
[1770821061316,11.0866,81.216,81.135,30.10910836]
[1770821061512,17.63479166,81.237,81.135,30.10910836]
[1770821062922,11.0866,81.216,81.137,30.10910836]
[1770821063221,17.63479166,81.237,81.137,30.10910836]
[1770821063421,11.0867,81.215,81.137,30.10910836]
[1770821063622,17.63479166,81.237,81.137,30.10910836]
[1770821063823,18.20385887,81.229,81.137,30.10910836]
[1770821064428,18.20385887,81.229,81.142,30.10910836]
[1770821064619,26.57597183,81.25,81.142,30.10910836]
[1770821064931,18.6137195,81.284,81.167,30.10910836]
[1770821065225,18.61393707,81.263,81.167,30.10910836]
[1770821065430,18.61393707,81.251,81.167,30.10910836]
[1770821065616,18.60080024,81.249,81.167,30.10910836]
[1770821066020,45.18230352,81.27,81.167,30.10910836]
[1770821066221,18.60633169,81.27,81.179,29.42159414]
[1770821066631,26.57597183,81.27,81.179,29.42159414]
[1770821066828,18.57976859,81.251,81.16,11.0]
[1770821067017,18.57976859,81.251,81.076,172.7534]
[1770821067018,18.58020467,81.229,81.111,29.42159414]
[1770821067423,18.58020467,81.229,81.117,29.42159414]
[1770821067828,11.0872,81.212,81.128,29.42159414]
[1770821068026,18.58020467,81.229,81.128,29.42159414]
[1770821068229,17.9396624,81.251,81.151,29.42159414]
[1770821068429,17.9396624,81.251,81.123,172.6549]
[1770821068430,17.9396624,81.251,81.177,29.42159414]
[1770821069627,17.9396624,81.251,81.127,191.68]
[1770821069628,17.9396624,81.251,81.13,26.57597183]
[1770821069827,17.9156414,81.249,81.131,29.42159414]
[1770821070328,17.67845079,81.216,81.131,29.42159414]
[1770821070927,11.0896,81.194,81.131,29.42159414]
[1770821071127,17.66674477,81.209,81.131,29.42159414]
[1770821071434,17.66674477,81.189,81.112,29.42159414]
[1770821071931,11.0904,81.188,81.112,29.42159414]
[1770821072137,17.66806837,81.209,81.112,29.42159414]
[1770821073531,17.65672431,81.189,81.112,29.42159414]
[1770821074039,11.0919,81.177,81.112,29.42159414]
[1770821074333,17.65672431,81.189,81.112,29.42159414]
[1770821074736,22.175,81.21,81.032,37.02]
[1770821074737,17.7703253,81.169,81.071,29.42159414]
[1770821075137,11.0959,81.147,81.071,29.42159414]
[1770821075341,17.7703253,81.169,81.071,29.42159414]
[1770821075530,17.75982846,81.149,81.071,29.42159414]
[1770821075838,26.57597183,81.15,81.071,29.42159414]
[1770821075839,17.75982846,81.169,81.071,29.42159414]
[1770821076036,17.80634135,81.159,81.071,29.42159414]
[1770821076540,44.38231318,81.18,81.071,29.42159414]
[1770821076940,10.41684391,81.17,81.081,29.42159414]
[1770821077140,17.79555214,81.169,81.081,29.42159414]
[1770821077343,17.79555214,81.149,81.081,29.42159414]
[1770821077638,10.41684391,81.17,81.081,29.42159414]
[1770821077845,17.78475127,81.169,81.081,29.42159414]
[1770821078334,10.41684391,81.17,81.092,29.42159414]
[1770821078539,10.41684391,81.19,81.101,29.42159414]
[1770821078736,17.7697742,81.193,81.101,29.42159414]
[1770821078932,11.0904,81.188,81.101,29.42159414]
[1770821079442,17.75922265,81.217,81.135,29.42159414]
[1770821079630,17.74842213,81.239,81.141,29.42159414]
[1770821079835,502.45453089,81.287,81.11,191.36]
[1770821079836,17.74842213,81.263,81.161,29.42159414]
[1770821080137,330.14593089,81.287,81.127,29.42159414]